bitfinex-derivatives/quotes_SOLF0:USTF0_20260126
["timestamp","ask_amount","ask_price","bid_price","bid_amount"]
[1769399530616,6.17820209,121.55,121.49,3.57348758]
[1769399531719,3.41818146,121.55,121.5,3.57348758]
[1769399532221,2.76002063,121.53,121.48,3.57348758]
[1769399532415,3.41818146,121.54,121.49,6.33350821]
[1769399533921,3.41818146,121.57,121.51,3.57348758]
[1769399537425,3.41818146,121.57,121.52,3.32904636]
[1769399539726,3.41818146,121.57,121.52,6.08906699]
[1769399540626,6.25378628,121.59,121.53,3.32904636]
[1769399541327,3.49376565,121.59,121.54,3.32904636]
[1769399544326,3.49376565,121.58,121.52,3.32904636]
[1769399544726,6.25378628,121.58,121.52,3.32904636]
[1769399544922,3.49376565,121.58,121.52,3.32904636]
[1769399546436,3.49376565,121.56,121.5,3.32904636]
[1769399547723,3.49376565,121.56,121.5,6.08906699]
[1769399548827,6.25378628,121.58,121.51,3.32904636]
[1769399549028,6.25378628,121.58,121.51,6.08906699]
[1769399549224,3.49376565,121.57,121.52,3.32904636]
[1769399549426,3.49376565,121.58,121.52,2.76002063]
[1769399550630,3.49376565,121.57,121.51,3.32904636]
[1769399550930,3.49376565,121.57,121.51,10.74564636]
[1769399551130,3.49376565,121.57,121.51,13.50566699]
[1769399552428,3.49376565,121.57,121.51,6.08906699]
[1769399552633,3.49376565,121.57,121.51,3.32904636]
[1769399554231,6.25378628,121.57,121.51,3.32904636]
[1769399555138,3.49376565,121.57,121.51,3.32904636]
[1769399559634,3.49376565,121.57,121.5,2.76002063]
[1769399559939,3.49376565,121.57,121.5,6.02369286]
[1769399560838,3.49376565,121.57,121.51,3.26367223]
[1769399561744,3.49376565,121.57,121.49,13.44119286]
[1769399561936,3.49376565,121.57,121.5,3.26367223]
[1769399562343,3.46489013,121.56,121.5,6.02369286]
[1769399567646,3.46489013,121.56,121.5,3.26367223]
[1769399568340,3.46489013,121.55,121.5,3.26367223]
[1769399570146,3.46489013,121.54,121.48,6.02369286]
[1769399570447,3.46489013,121.54,121.49,3.26367223]
[1769399572744,3.46489013,121.54,121.46,3.26367223]
[1769399572955,3.46489013,121.54,121.43,324.52754535]
[1769399572956,3.46489013,121.51,121.45,3.26367223]
[1769399573147,3.46489013,121.51,121.45,6.02369286]
[1769399573650,3.46489013,121.51,121.46,3.26367223]
[1769399575456,6.22491076,121.51,121.46,3.26367223]
[1769399577253,3.46489013,121.5,121.44,6.02369286]
[1769399577457,3.46489013,121.49,121.44,3.26367223]
[1769399583059,6.22491076,121.49,121.44,3.26367223]
[1769399583756,3.4356807,121.51,121.44,6.02369286]
[1769399584061,3.4356807,121.51,121.46,3.31874709]
[1769399584753,3.4356807,121.53,121.47,3.31874709]
[1769399586767,0.05655841,121.51,121.47,3.31874709]
[1769399590968,2.81861249,121.51,121.47,3.31874709]
[1769399591170,6.25429319,121.51,121.45,3.31874709]
[1769399591473,6.19773478,121.5,121.45,3.31874709]
[1769399592970,3.4356807,121.5,121.45,3.31874709]
[1769399593873,6.19773478,121.49,121.43,3.31874709]
[1769399594174,6.19773478,121.49,121.44,3.31874709]
[1769399594376,3.4356807,121.49,121.44,3.31874709]
[1769399594772,6.19773478,121.49,121.44,3.31874709]
[1769399595278,0.05684017,121.48,121.44,3.31874709]
[1769399596475,3.54570824,121.51,121.45,3.31874709]
[1769399596678,3.54570824,121.5,121.45,3.37752595]
[1769399596872,6.30776232,121.5,121.45,3.37752595]
[1769399597572,6.30776232,121.48,121.45,0.05877886]
[1769399597880,2.76205408,121.47,121.45,0.05877886]
[1769399598081,2.76205408,121.47,121.42,3.57650887]
[1769399598382,2.76205408,121.47,121.45,0.0598283]
[1769399598581,6.30776232,121.48,121.45,0.0598283]
[1769399599175,3.54570824,121.48,121.45,0.0598283]
[1769399600184,13.78274511,121.48,121.42,3.57650887]
[1769399601685,2.76205408,121.47,121.42,3.57650887]
[1769399602584,6.30776232,121.47,121.42,3.57650887]
[1769399605483,3.60199103,121.48,121.42,6.33856295]
[1769399605683,3.60199103,121.48,121.43,6.33856295]
[1769399605986,0.05628279,121.48,121.44,6.33856295]
[1769399606187,3.54570824,121.5,121.45,6.33856295]
[1769399606383,2.76205408,121.52,121.45,6.33856295]
[1769399606688,6.30776232,121.52,121.45,6.33856295]
[1769399606985,13.72426232,121.52,121.47,0.06271778]
[1769399607184,10.17855408,121.52,121.47,0.06271778]
[1769399607384,3.54570824,121.51,121.47,0.06271778]
[1769399608183,3.54570824,121.47,121.39,11.00020887]
[1769399608390,7.4187,121.48,121.39,3.57650887]
[1769399608391,2.76205408,121.44,121.39,3.57650887]
[1769399608782,6.30776232,121.45,121.39,3.57650887]
[1769399609686,0.05975771,121.43,121.39,3.57650887]
[1769399620495,0.05975771,121.43,121.37,3.29018372]
[1769399620496,6.26137698,121.43,121.37,3.29018372]
[1769399621387,3.43956519,121.42,121.37,3.29018372]
[1769399621695,6.20161927,121.41,121.35,3.29018372]
[1769399622788,0.0540979,121.39,121.35,3.29018372]
[1769399622992,2.76205408,121.38,121.33,3.29018372]
[1769399623987,0.05394004,121.37,121.33,3.29018372]
[1769399627701,0.05394004,121.37,121.29,1.4339576]
[1769399627702,3.43956519,121.36,121.29,3.29018372]
[1769399627902,6.20161927,121.36,121.29,3.29018372]
[1769399628502,6.20161927,121.36,121.3,3.29018372]
[1769399628700,0.05259147,121.34,121.3,3.29018372]
[1769399632107,6.25421074,121.34,121.28,3.29018372]
[1769399632504,0.05259147,121.34,121.28,3.29018372]
[1769399632706,0.05259147,121.34,121.29,3.29018372]
[1769399633017,0.05259147,121.34,121.3,3.29018372]
[1769399634011,0.05259147,121.34,121.28,6.0522378]
[1769399634214,0.05259147,121.34,121.29,3.29018372]
[1769399634613,3.43956519,121.35,121.29,3.29018372]
[1769399634809,0.0627929,121.33,121.29,3.29018372]
[1769399636913,0.0627929,121.33,121.29,6.0522378]
[1769399637114,3.43956519,121.35,121.3,3.29018372]
[1769399637317,3.43956519,121.37,121.32,3.29018372]
[1769399638014,2.76205408,121.38,121.32,3.29018372]
[1769399638208,6.20161927,121.38,121.32,3.29018372]
[1769399638413,3.43956519,121.38,121.32,3.29018372]
[1769399638616,2.76205408,121.4,121.34,3.35328803]
[1769399639118,13.62481927,121.41,121.34,6.0522378]
[1769399639518,13.62481927,121.41,121.36,0.05462731]
[1769399639815,6.20161927,121.41,121.36,0.05462731]
[1769399640017,3.43956519,121.41,121.36,3.34481103]
[1769399640313,3.43956519,121.43,121.38,3.29018372]
[1769399640916,2.76205408,121.44,121.38,3.29018372]
[1769399641118,6.20161927,121.44,121.38,3.29018372]
[1769399641314,6.20161927,121.44,121.39,0.06171063]
[1769399643618,3.43956519,121.44,121.39,0.06171063]
[1769399644219,6.20161927,121.44,121.39,0.06171063]
[1769399645420,13.60951809,121.46,121.39,6.26918469]
[1769399645619,3.42736401,121.45,121.39,6.26918469]
[1769399646521,3.42736401,121.45,121.39,3.50713061]
[1769399646918,3.42736401,121.44,121.39,3.50713061]
[1769399651624,3.42736401,121.42,121.39,0.06171063]
[1769399652931,6.25504146,121.42,121.36,3.44541998]
[1769399653129,3.4891137,121.42,121.36,6.21134774]
[1769399655228,3.4891137,121.42,121.36,3.44541998]
[1769399655827,0.06174969,121.42,121.36,6.21134774]
[1769399656127,0.06174969,121.42,121.38,3.44541998]
[1769399656533,0.06174969,121.42,121.38,6.21134774]
[1769399657226,0.06174969,121.42,121.38,3.44541998]
[1769399657628,3.60084847,121.42,121.36,3.49454026]
[1769399657839,0.06174969,121.42,121.37,6.26046802]
[1769399658035,0.06174969,121.42,121.38,3.49454026]
[1769399658531,3.53909878,121.44,121.38,3.49454026]
[1769399658933,0.06026518,121.41,121.38,3.49454026]
[1769399659131,0.06026518,121.41,121.36,6.26046802]
[1769399659330,0.06026518,121.41,121.37,3.49454026]
[1769399659529,6.30502654,121.43,121.37,3.49454026]
[1769399659833,0.06085214,121.4,121.37,3.49454026]
[1769399661339,6.30502654,121.43,121.37,3.49454026]
[1769399661530,6.30502654,121.43,121.37,3.55536656]
[1769399664141,3.53909878,121.43,121.37,3.55536656]
[1769399664541,6.30502654,121.43,121.37,3.55536656]
[1769399666740,6.30502654,121.42,121.37,0.0608263]
[1769399667346,3.53909878,121.42,121.37,0.0608263]
[1769399667544,6.30502654,121.42,121.37,0.0608263]
[1769399667844,7.4231,121.41,121.37,0.0608263]
[1769399668045,6.30502654,121.42,121.37,0.0608263]
[1769399669946,3.53909878,121.42,121.37,0.0608263]
[1769399670449,6.30502654,121.42,121.37,0.0608263]
[1769399671546,6.30502654,121.42,121.37,3.55536656]
[1769399671547,3.53909878,121.42,121.37,3.55536656]
[1769399676848,3.57169807,121.44,121.38,3.44485145]
[1769399677151,3.57169807,121.44,121.39,3.44485145]
[1769399677747,3.57169807,121.44,121.4,0.06268529]
[1769399684666,3.57169807,121.42,121.37,3.44485145]
[1769399684863,6.33762583,121.42,121.37,3.44485145]
[1769399690366,3.57169807,121.42,121.37,3.44485145]
[1769399691971,3.57169807,121.42,121.33,3.44485145]
[1769399692172,6.33762583,121.35,121.29,3.44485145]
[1769399692377,2.76592776,121.33,121.29,3.44485145]
[1769399692874,0.05262423,121.32,121.29,3.44485145]
[1769399695579,0.05262423,121.32,121.27,3.44485145]
[1769399695776,6.39025006,121.32,121.24,12.31221147]
[1769399695975,3.57169807,121.31,121.25,3.44485145]
[1769399696581,6.33762583,121.31,121.25,3.44485145]
[1769399696770,0.06279294,121.29,121.25,3.44485145]
[1769399698470,2.8287207,121.29,121.23,3.44485145]
[1769399698885,2.76592776,121.28,121.23,3.44485145]
[1769399699076,2.76592776,121.27,121.23,3.44485145]
[1769399699275,2.76592776,121.27,121.21,3.44485145]
[1769399699475,3.57169807,121.28,121.19,6.21077921]
[1769399699476,3.57169807,121.25,121.19,6.21077921]
[1769399700183,0.0599888,121.23,121.19,6.21077921]
[1769399700376,0.0599888,121.23,121.19,3.44485145]
[1769399700777,3.57169807,121.28,121.22,3.44485145]
[1769399700977,6.33762583,121.3,121.23,6.21077921]
[1769399701282,6.33762583,121.3,121.24,3.44485145]
[1769399701685,3.57169807,121.3,121.25,3.44485145]
[1769399702075,2.76592776,121.32,121.26,3.44485145]
[1769399702275,6.33762583,121.31,121.26,0.06246728]
[1769399702483,2.76592776,121.3,121.26,0.06246728]
[1769399702883,6.33762583,121.3,121.24,3.44485145]
[1769399703288,6.33762583,121.3,121.27,0.05811885]
[1769399706090,3.24199385,121.27,121.2,10.73689478]
[1769399706293,2.76592776,121.26,121.2,10.73689478]
[1769399707297,6.00792161,121.27,121.2,10.73689478]
[1769399707498,0.06335319,121.24,121.2,10.73689478]
[1769399708302,6.00792161,121.27,121.21,3.30139478]
[1769399708695,6.00792161,121.27,121.21,3.363734]
[1769399709600,6.01594689,121.27,121.21,3.363734]
[1769399712897,2.77395304,121.29,121.22,3.30139478]
[1769399713101,3.24199385,121.29,121.23,6.07534782]
[1769399713704,3.24199385,121.29,121.25,0.05506226]
[1769399715702,6.01594689,121.29,121.25,0.05506226]
[1769399715904,3.24199385,121.29,121.25,0.05506226]
[1769399717108,3.46405876,121.31,121.25,0.05506226]
[1769399717401,6.2380118,121.31,121.25,0.05506226]
[1769399717599,6.2380118,121.3,121.25,0.05506226]
[1769399718306,3.46405876,121.28,121.22,3.51149606]
[1769399719005,3.46405876,121.28,121.22,6.2854491]
[1769399720207,3.52085577,121.26,121.19,3.51149606]
[1769399720403,3.52085577,121.26,121.19,6.2854491]
[1769399720404,3.46405876,121.25,121.19,6.2854491]
[1769399721008,3.46405876,121.25,121.19,3.51149606]
[1769399721405,0.05889447,121.23,121.19,3.51149606]
[1769399722697,0.05889447,121.23,121.19,6.2854491]
[1769399723201,0.05889447,121.23,121.17,3.51149606]
[1769399723407,0.05889447,121.23,121.18,2.77395304]
[1769399723809,0.05889447,121.23,121.18,6.2854491]
[1769399725202,0.05889447,121.23,121.19,6.2854491]
[1769399725509,3.46405876,121.26,121.21,3.51149606]
[1769399725906,3.46405876,121.26,121.19,6.2854491]
[1769399726711,6.2380118,121.26,121.19,3.51149606]
[1769399727009,6.2380118,121.24,121.17,6.2854491]
[1769399727205,3.51813834,121.24,121.18,6.2854491]
[1769399727808,3.46405876,121.24,121.18,6.2854491]
[1769399728310,13.6703118,121.26,121.19,3.51149606]
[1769399728507,13.6703118,121.26,121.19,6.2854491]
[1769399728809,10.89635876,121.26,121.19,6.2854491]
[1769399729809,10.89635876,121.26,121.21,0.05268865]
[1769399730308,3.46405876,121.25,121.21,0.05268865]
[1769399730507,6.2380118,121.25,121.21,0.05268865]
[1769399732713,3.46405876,121.25,121.21,0.05268865]
[1769399738015,6.2380118,121.25,121.21,0.05268865]
[1769399741220,3.46405876,121.25,121.21,0.05268865]
[1769399741414,3.38454383,121.24,121.21,0.05268865]
[1769399742717,3.38454383,121.23,121.17,13.78263446]
[1769399742921,3.38454383,121.22,121.17,3.57138142]
[1769399743124,3.38454383,121.22,121.16,3.57138142]
[1769399743422,3.38454383,121.22,121.17,3.57138142]
[1769399744018,0.05306017,121.21,121.17,3.57138142]
[1769399745222,3.38454383,121.2,121.12,3.57138142]
[1769399745421,3.38454383,121.18,121.12,3.57138142]
[1769399745717,6.15849687,121.18,121.12,3.57138142]
[1769399746022,3.38454383,121.17,121.12,3.57138142]
[1769399746220,0.05340177,121.16,121.12,3.57138142]
[1769399748626,0.05340177,121.16,121.1,3.57138142]
[1769399748821,6.21189864,121.16,121.1,3.57138142]
[1769399749026,3.4379456,121.16,121.1,6.34533446]
[1769399749225,0.05340177,121.16,121.11,6.34533446]
[1769399749727,6.15849687,121.18,121.11,6.34533446]
[1769399750218,0.05355503,121.15,121.11,6.34533446]
[1769399750424,0.05355503,121.15,121.11,3.57138142]
[1769399750926,3.43809886,121.15,121.09,6.34533446]
[1769399751224,0.05355503,121.15,121.1,6.34533446]
[1769399751725,3.38454383,121.16,121.1,6.34533446]
[1769399752224,0.05747464,121.14,121.1,6.34533446]
[1769399752525,0.05747464,121.14,121.08,6.34533446]
[1769399752724,3.38454383,121.17,121.11,6.34533446]
[1769399752924,3.38454383,121.17,121.11,6.40314802]
[1769399753120,3.38454383,121.17,121.12,6.34533446]
[1769399753924,6.15849687,121.21,121.14,3.57138142]
[1769399754117,3.38454383,121.2,121.14,6.34533446]
[1769399754317,3.38454383,121.2,121.14,3.57138142]
[1769399755024,6.15849687,121.2,121.16,0.06057008]
[1769399755629,6.15849687,121.19,121.12,6.34533446]
[1769399755826,3.38454383,121.18,121.12,6.34533446]
[1769399756221,3.38454383,121.18,121.13,3.57138142]
[1769399757122,0.05426151,121.17,121.13,3.57138142]
[1769399757822,0.05426151,121.17,121.14,3.57138142]
[1769399758023,3.38454383,121.2,121.14,6.40663258]
[1769399758625,3.38454383,121.2,121.14,3.63267954]
[1769399759021,3.38454383,121.2,121.14,6.40663258]
[1769399759222,2.77395304,121.21,121.14,0.06129812]
[1769399759223,6.15849687,121.19,121.14,0.06129812]
[1769399759620,3.38454383,121.18,121.14,0.06129812]
[1769399759830,6.15849687,121.18,121.14,0.06129812]
[1769399761727,3.38454383,121.18,121.14,0.06129812]
[1769399763337,6.15849687,121.18,121.14,0.06129812]
[1769399764032,3.42127133,121.17,121.14,0.06129812]
[1769399764235,6.19522437,121.15,121.09,3.34530598]
[1769399764437,3.42127133,121.15,121.09,3.34530598]
[1769399764834,6.19522437,121.15,121.09,3.34530598]
[1769399765137,6.19522437,121.14,121.09,3.34530598]
[1769399765329,6.19522437,121.14,121.07,48.03748996]
[1769399765535,0.05408321,121.13,121.07,45.26353692]
[1769399766837,6.24930758,121.13,121.07,45.26353692]
[1769399767037,3.42127133,121.12,121.07,41.91823094]
[1769399767332,0.05408321,121.13,121.08,6.11925902]
[1769399767935,0.05408321,121.13,121.09,3.34530598]
[1769399769034,0.05408321,121.13,121.09,6.11925902]
[1769399769239,0.05408321,121.13,121.09,3.34530598]
[1769399769438,2.82803625,121.13,121.07,41.91823094]
[1769399769642,2.82803625,121.13,121.07,45.26353692]
[1769399770030,0.05408321,121.13,121.07,45.26353692]
[1769399770539,3.42127133,121.12,121.07,45.26353692]
[1769399774543,0.05408321,121.13,121.08,3.34530598]
[1769399774943,0.05408321,121.13,121.08,6.12584822]
[1769399775139,0.05408321,121.13,121.09,3.34530598]
[1769399775637,3.42127133,121.18,121.1,6.12584822]
[1769399775945,6.20181357,121.18,121.11,3.34530598]
[1769399776240,6.20181357,121.17,121.11,3.34530598]
[1769399781246,3.42127133,121.17,121.11,6.12584822]
[1769399787246,3.42071053,121.16,121.09,3.53552777]
[1769399787552,3.42071053,121.16,121.09,6.31607001]
[1769399787752,3.42071053,121.16,121.1,3.53552777]
[1769399788547,13.63835277,121.18,121.11,3.53552777]
[1769399789050,3.42071053,121.17,121.11,6.31607001]
[1769399789850,3.42071053,121.17,121.13,0.05523241]
[1769399790650,13.63895277,121.17,121.11,3.53552777]
[1769399790846,0.06172239,121.16,121.11,3.53552777]
[1769399791048,3.48243292,121.16,121.11,3.53552777]
[1769399793252,0.06172239,121.16,121.11,6.31607001]
[1769399795859,0.06172239,121.16,121.11,3.53552777]
[1769399800262,3.29055046,121.15,121.09,3.49836417]
[1769399801164,0.05724917,121.13,121.09,3.49836417]
[1769399803966,0.05724917,121.13,121.09,6.27890641]
[1769399804562,0.05724917,121.13,121.1,3.49836417]
[1769399809074,0.05724917,121.13,121.08,3.49836417]
[1769399812368,0.05724917,121.13,121.08,6.27890641]
[1769399812569,0.05724917,121.13,121.1,3.49836417]
[1769399816372,10.72735046,121.19,121.12,3.49836417]
[1769399816684,12.65985581,121.18,121.12,3.49836417]
[1769399816980,3.29055046,121.18,121.12,3.49836417]
[1769399817172,9.88026893,121.18,121.12,3.49836417]
[1769399817374,3.29055046,121.18,121.12,3.49836417]
[1769399819069,3.29055046,121.18,121.14,0.05440385]
[1769399819579,0.06026441,121.16,121.14,0.05440385]
[1769399820483,10.72605046,121.21,121.15,3.49836417]
[1769399820676,3.29055046,121.21,121.15,6.27890641]
[1769399820980,6.55864504,121.22,121.17,6.27890641]
[1769399821288,3.29055046,121.23,121.18,6.27890641]
[1769399821782,10.72355046,121.25,121.18,6.27890641]
[1769399821980,10.72355046,121.25,121.19,2.84224697]
[1769399822982,3.29055046,121.25,121.19,2.84224697]
[1769399823178,10.85567857,121.27,121.2,3.47036952]
[1769399823380,3.42397857,121.26,121.2,3.47036952]
[1769399824181,3.42397857,121.26,121.22,0.0523287]
[1769399825078,10.85627857,121.26,121.22,0.0523287]
[1769399825280,3.42397857,121.25,121.22,0.00556694]
[1769399828885,6.20452081,121.25,121.22,0.00556694]
[1769399829386,3.42397857,121.25,121.22,0.00556694]
[1769399831177,6.20452081,121.25,121.22,0.00556694]
[1769399831576,6.19870097,121.25,121.22,0.00556694]
[1769399838799,6.04609934,121.24,121.19,3.47036952]
[1769399839094,6.04609934,121.24,121.17,3.56380407]
[1769399840389,6.04609934,121.24,121.19,0.05889833]
[1769399841101,6.04609934,121.21,121.15,3.56380407]
[1769399842500,0.05760117,121.19,121.15,3.56380407]
[1769399848206,2.7747224,121.22,121.16,3.56380407]
[1769399848408,6.04609934,121.23,121.16,3.62443553]
[1769399848999,6.04609934,121.23,121.17,3.56380407]
[1769399849606,3.27137694,121.23,121.17,3.56380407]
[1769399849805,6.04609934,121.23,121.17,3.56380407]
[1769399850003,2.7747224,121.23,121.19,3.62152028]
[1769399850204,6.04609934,121.25,121.19,3.62152028]
[1769399851300,3.27137694,121.25,121.19,3.62152028]
[1769399851500,10.2072224,121.26,121.19,3.62152028]
[1769399851812,6.04609934,121.27,121.2,3.56380407]
[1769399852112,3.27137694,121.3,121.22,3.56380407]
[1769399852303,2.7747224,121.29,121.22,6.33852647]
[1769399852505,6.04609934,121.3,121.23,3.56380407]
[1769399853406,6.04609934,121.3,121.25,0.056139]
[1769399853909,3.33485077,121.32,121.26,3.52461727]
[1769399854305,6.10957317,121.32,121.26,3.52461727]
[1769399854503,3.33485077,121.32,121.26,6.29933967]
[1769399854702,6.10957317,121.34,121.27,3.52461727]
[1769399854912,6.10957317,121.34,121.28,0.06009044]
[1769399856011,6.10957317,121.34,121.28,3.58470771]
[1769399857305,3.33485077,121.36,121.28,3.58470771]
[1769399857613,2.7747224,121.34,121.28,3.58470771]
[1769399857907,119.5,121.38,121.28,6.29933967]
[1769399858107,3.33485077,121.41,121.33,3.52461727]
[1769399858314,6.10957317,121.39,121.33,3.52461727]
[1769399858511,2.7747224,121.37,121.3,2.82769639]
[1769399858714,112.9,121.45,121.31,3.52461727]
[1769399858715,2.7747224,121.36,121.31,3.52461727]
[1769399859013,6.10957317,121.37,121.32,0.06085019]
[1769399859207,2.7747224,121.36,121.32,0.06085019]
[1769399859610,2.7747224,121.36,121.31,3.52461727]
[1769399859911,2.7747224,121.34,121.28,3.52461727]
[1769399861417,0.06321351,121.32,121.28,3.52461727]
[1769399861916,3.33485077,121.35,121.3,3.52461727]
[1769399862116,6.10957317,121.37,121.3,6.29933967]
[1769399863118,3.33485077,121.37,121.3,6.29933967]
[1769399863311,6.10957317,121.37,121.3,6.29933967]
[1769399863513,6.10957317,121.36,121.32,0.05879642]
[1769399864612,3.33485077,121.36,121.32,0.05879642]
[1769399865013,0.05888291,121.35,121.32,0.05879642]
[1769399867314,2.83360531,121.35,121.32,0.05879642]
[1769399867508,2.83360531,121.35,121.28,2.7747224]
[1769399867509,6.10957317,121.34,121.28,3.52461727]
[1769399868016,2.7747224,121.33,121.28,3.52461727]
[1769399868414,6.10957317,121.34,121.28,3.52461727]
[1769399868921,0.05515095,121.32,121.28,3.52461727]
[1769399875530,0.05515095,121.32,121.28,6.29933967]
[1769399875730,3.33485077,121.34,121.28,6.29933967]
[1769399875923,3.33485077,121.34,121.29,0.05460649]
[1769399878431,6.10957317,121.34,121.29,0.05460649]
[1769399878627,6.10957317,121.33,121.29,0.05460649]
[1769399879134,6.10957317,121.33,121.27,10.95581727]
[1769399879526,3.33485077,121.33,121.3,0.05534439]
[1769399881035,3.33485077,121.31,121.25,10.95691727]
[1769399881230,3.33485077,121.31,121.25,13.73163967]
[1769399881733,6.10957317,121.33,121.26,13.73123967]
[1769399882427,0.06254764,121.31,121.26,13.73123967]
[1769399882932,0.06254764,121.31,121.27,13.73053967]
[1769399883130,2.7747224,121.35,121.29,3.52461727]
[1769399883131,6.10957317,121.35,121.29,3.52461727]
[1769399884134,3.38960861,121.34,121.29,3.52461727]
[1769399884333,3.38960861,121.33,121.28,7.4306]
[1769399884536,3.38960861,121.33,121.31,0.05242282]
[1769399885330,3.38960861,121.33,121.27,3.35698243]
[1769399887033,6.16433101,121.33,121.27,3.35698243]
[1769399887336,0.05254954,121.31,121.27,3.35698243]
[1769399889040,0.05254954,121.31,121.27,6.13170483]
[1769399893142,10.81640861,121.35,121.29,6.13170483]
[1769399893337,3.38960861,121.35,121.29,6.13170483]
[1769399893539,3.38960861,121.35,121.29,3.35698243]
[1769399893946,6.15976727,121.35,121.29,3.35698243]
[1769399894739,3.38960861,121.33,121.27,3.35698243]
[1769399896139,0.05375667,121.31,121.27,10.78818243]
[1769399896344,0.05375667,121.31,121.28,3.35698243]
[1769399897440,3.49879272,121.35,121.26,3.36934497]
[1769399897643,3.49879272,121.35,121.23,151.7]
[1769399897644,3.49879272,121.37,121.31,3.36934497]
[1769399897943,10.03342541,121.37,121.31,6.13950363]
[1769399898733,10.03342541,121.37,121.31,3.36934497]
[1769399898943,10.03342541,121.37,121.33,0.06281175]
[1769399900946,3.49879272,121.36,121.33,0.06281175]
[1769399902943,6.26895138,121.38,121.33,0.06281175]
[1769399903341,3.49879272,121.37,121.33,0.06281175]
[1769399915854,6.26895138,121.37,121.33,0.06281175]
[1769399916153,3.48128544,121.36,121.33,0.06281175]
[1769399942870,3.48128544,121.35,121.28,2.77015866]
[1769399943073,3.48128544,121.32,121.27,3.27852672]
[1769399943777,3.53592562,121.34,121.28,3.54869803]
[1769399943980,3.53592562,121.33,121.28,3.54869803]
[1769399944375,0.0582745,121.32,121.28,3.54869803]
[1769399950085,0.0582745,121.32,121.26,7.4318]
[1769399950086,3.59420012,121.32,121.26,10.98049803]
[1769399950282,3.59420012,121.32,121.26,3.54869803]
[1769399950483,6.36435878,121.32,121.26,3.54869803]
[1769399951488,3.59420012,121.32,121.26,3.54869803]
[1769399951680,6.36435878,121.32,121.26,3.54869803]
[1769399954989,3.59420012,121.32,121.26,3.54869803]
[1769399955287,6.36435878,121.32,121.26,3.54869803]
[1769399955689,6.36586689,121.32,121.26,3.54869803]
[1769399956292,3.59420012,121.32,121.26,3.54869803]
[1769399956590,6.36586689,121.32,121.26,3.54869803]
[1769399960980,3.59420012,121.32,121.26,3.54869803]
[1769399962386,3.52889377,121.42,121.27,3.26318847]
[1769399962582,3.52889377,121.42,121.22,174.88]
[1769399962583,3.52889377,121.4,121.34,3.26318847]
[1769399963891,3.52889377,121.4,121.36,0.05377654]
[1769399968797,2.77166677,121.41,121.3,3.26318847]
[1769399968798,6.30056054,121.36,121.3,3.26318847]
[1769399968992,3.52889377,121.36,121.3,3.26318847]
[1769399969997,0.05448449,121.34,121.3,13.46415524]
[1769399970296,3.52889377,121.36,121.3,13.46415524]
[1769399970498,3.52889377,121.36,121.32,0.05592497]
[1769399970798,3.52889377,121.38,121.32,2.82759174]
[1769399970992,3.52889377,121.38,121.32,6.09078021]
[1769399971599,3.52889377,121.38,121.33,6.03485524]
[1769399972101,3.52889377,121.4,121.34,13.46195524]
[1769399973098,3.52889377,121.4,121.36,0.06058655]
[1769399981509,3.50023343,121.39,121.36,0.00114716]
[1769399981706,3.55458698,121.39,121.36,0.00114716]
[1769399988612,3.50023343,121.44,121.38,6.24949861]
[1769399988917,3.50023343,121.48,121.41,2.77166677]
[1769399990019,3.50023343,121.48,121.43,0.05783914]
[1769399990212,3.50023343,121.5,121.44,6.24949861]
[1769399990413,3.50023343,121.5,121.45,2.77166677]
[1769399991012,0.05542608,121.49,121.45,2.77166677]
[1769399991214,0.05542608,121.49,121.46,0.05991737]
[1769399992621,0.05542608,121.49,121.46,2.83158414]
[1769399994025,2.77166677,121.55,121.48,2.77166677]
[1769399994421,10.18566677,121.56,121.48,6.24949861]
[1769399994725,79.03166677,121.57,121.49,2.77166677]
[1769399995026,2.77166677,121.56,121.49,2.77166677]
[1769399995427,2.77166677,121.56,121.52,0.0623764]
[1769399996023,3.50023343,121.55,121.52,0.0623764]
[1769399997829,3.50023343,121.57,121.52,0.0623764]
[1769400002429,3.50023343,121.57,121.52,2.83404317]
[1769400002935,3.50023343,121.59,121.53,3.47783184]
[1769400003135,3.50023343,121.61,121.56,2.77166677]
[1769400003433,294.7825,121.72,121.57,2.77166677]
[1769400003434,3.37303994,121.63,121.57,2.77166677]
[1769400003639,3.37303994,121.63,121.58,2.77166677]
[1769400004640,3.37303994,121.61,121.57,0.05803123]
[1769400005138,3.37303994,121.61,121.55,2.77166677]
[1769400005640,3.37303994,121.61,121.58,0.05428429]
[1769400006340,3.37303994,121.61,121.55,2.77166677]
[1769400007937,6.14470671,121.61,121.54,6.12110553]
[1769400008139,6.14470671,121.61,121.57,0.05487464]
[1769400008440,6.14470671,121.6,121.57,0.05487464]
[1769400008644,3.37303994,121.6,121.57,0.05487464]
[1769400010943,3.37303994,121.63,121.57,0.05487464]
[1769400011142,6.14470671,121.63,121.57,0.05487464]
[1769400011342,6.14470671,121.63,121.56,6.12110553]
[1769400011545,3.37303994,121.63,121.57,2.77166677]
[1769400011937,3.37303994,121.63,121.58,0.05628177]
[1769400012142,3.37303994,121.63,121.58,2.82794854]
[1769400012539,3.37303994,121.63,121.58,6.1773873]
[1769400012744,6.14470671,121.65,121.58,3.40572053]
[1769400014149,3.37303994,121.64,121.58,3.40572053]
[1769400015252,6.14470671,121.64,121.58,3.40572053]